Cogmind - Beta 14 @@@ ROGUE MODE // 2024.10.22 @ 13:59:23 Player: canerib Result: Destroyed by H-77 Assassin with Coil Gun Performance ------------- Evolutions (5) 2500 Regions Visited (11) 2200 Robots Destroyed (80) 400 Value Destroyed (3553) 3553 Prototype IDs (4) 80 Alien Tech Used (2) 400 Bonus (40) 40 TOTAL SCORE: 9173 Bonus ------- High Alert Combat Kills 40 Cogmind --------- Core Integrity 0/1000 Matter 200/300 Energy 100/100 System Corruption 3% Temperature Cool (0) Movement Core (50) Location -4/Proximity Caves Parts ------- > --- POWER (2) -------- (None) > --- PROPULSION (8) --- (None) > --- UTILITY (5) ------ (None) > --- WEAPON (2) ------- (None) > --- INVENTORY (5) ---- Reinforced Fission Core Fusion Reactor Advanced Power Amplifier Improved Matter Compressor (0) Peak State ------------ > --- POWER ------------ Reinforced Fission Core Antimatter Reactor > --- PROPULSION ------- Improved Treads Medium Treads Improved Medium Treads Carbon-fiber Leg Carbon-fiber Leg Compact Wheel Field Propulsion Drive > --- UTILITY ---------- Cryofiber Web Advanced ECM Suite Improved Propulsion Shielding Hacking Suite > --- WEAPON ----------- Enhanced Gauss Cannon Mini Smartbomb Launcher > --- INVENTORY -------- Improved Cooling System Layered Medium Armor Plating Improved Hacking Suite Hardcell Cannon [Rating: 65] Favorites ----------- Power Antimatter Reactor Engine Light Ion Engine Power Core Light Nuclear Core Reactor Antimatter Reactor Propulsion Carbon-fiber Leg Treads Improved Treads Leg Carbon-fiber Leg Wheel Compact Wheel Hover Unit Airjet Flight Unit Field Propulsion Drive Utility Cryofiber Web Device Cryofiber Web Storage Compact Matter Pod Processor Transport Network Coupler Hackware Hacking Suite Protection Improved Propulsion Shielding Weapon Gatling Laser Energy Gun Gatling Laser Energy Cannon Heavy Plasma Cannon Ballistic Gun Light Assault Rifle Ballistic Cannon Enhanced Gauss Cannon Launcher Mini Smartbomb Launcher Special Weapon Mining Laser Impact Weapon Impact Mace Build | -11 -10 -9 -9 -8 -7 -6 -5 -5 -5 -5 -4 ------- Run | Yrd Mat Mat Min Mat Fac Fac Fac Upp Upp Zhi Pro Slots Evolved 10 | . . 2 . 2 2 2 2 . . . . Power 1 | . . . . . . 1 . . . . . Propulsion 6 | . . 2 . 2 . . 2 . . . . Utility 3 | . . . . . 2 1 . . . . . Weapon . | . . . . . . . . . . . . Parts Attached 148 | 7 1 4 4 34 25 27 9 10 19 6 2 Power 21 | 1 . . 1 4 2 5 1 3 3 1 . Engine 6 | 1 . . 1 . 1 2 . . 1 . . Core 9 | . . . . 4 1 1 . 2 1 . . Reactor 6 | . . . . . . 2 1 1 1 1 . Propulsion 55 | 2 . 2 2 15 12 10 1 4 5 . 2 Treads 8 | . . 2 . 1 1 . . 1 3 . . Leg 23 | 2 . . 2 9 1 5 . 2 2 . . Wheel 3 | . . . . . 2 . . 1 . . . Hover 10 | . . . . . 5 5 . . . . . Flight 11 | . . . . 5 3 . 1 . . . 2 Utility 33 | 2 . 1 1 4 3 9 4 2 2 5 . Device 18 | 1 . . . 1 1 9 2 . 1 3 . Storage 6 | 1 . 1 1 1 1 . . . . 1 . Processor 1 | . . . . 1 . . . . . . . Hackware 3 | . . . . 1 . . . 1 . 1 . Protection 5 | . . . . . 1 . 2 1 1 . . Artifact . | . . . . . . . . . . . . Weapon 39 | 2 1 1 . 11 8 3 3 1 9 . . Energy Gun 10 | . . . . 4 6 . . . . . . Energy Cannon 1 | . . . . . . 1 . . . . . Ballistic Gun 7 | 2 . 1 . 3 . 1 . . . . . Ballistic Cannon 8 | . . . . . . . 2 . 6 . . Launcher 9 | . . . . 2 1 1 1 1 3 . . Special Weapon 3 | . 1 . . 2 . . . . . . . Impact Weapon 1 | . . . . . 1 . . . . . . Slashing Weapon . | . . . . . . . . . . . . Piercing Weapon . | . . . . . . . . . . . . Special Melee Weapon . | . . . . . . . . . . . . Unidentified Prototypes 6 | . . . . . 1 . 1 . . 4 . Parts Lost 69 | . . . . 24 2 21 . 5 12 . 5 Power 6 | . . . . 3 . 1 . 1 1 . . Propulsion 37 | . . . . 14 2 10 . 3 6 . 2 Utility 15 | . . . . 3 . 5 . 1 3 . 3 Weapon 11 | . . . . 4 . 5 . . 2 . . Highest Loss Streak 10 | . . . . 10 1 5 . 3 6 . 4 To Critical Strikes . | . . . . . . . . . . . . Average Slot Usage (%) 72 | . 100 88 99 86 82 78 58 63 70 12 13 Engine 1 | . 14 11 11 2 . 3 . . . . . Core 2 | . . . . 5 6 4 . . 4 . . Reactor 2 | . . . . . . 1 7 4 4 . . Treads 4 | . . 11 7 1 1 4 . 4 11 . . Leg 12 | . 28 22 35 29 6 7 17 8 9 . . Wheel 2 | . . . . . 8 . . 1 4 . . Hover 3 | . . . . . 13 10 . . . . . Flight 4 | . . . . 12 1 3 . 5 4 . . Device 13 | . 14 11 11 1 6 26 17 17 11 8 7 Storage 2 | . 14 11 11 8 6 . . . . . . Processor 1 | . . . . . 7 . . . . . . Hackware 2 | . . . . 6 . . . 3 4 3 4 Protection 3 | . . . . . 7 1 6 6 3 . . Energy Gun 4 | . . . . 8 12 7 . . . . . Ballistic Gun 2 | . 20 22 22 5 . 1 . . . . . Ballistic Cannon 1 | . . . . . . . 4 3 4 . . Launcher 1 | . . . . 1 . 1 2 3 . . . Peak Build Rating 65 | 9 9 11 12 23 41 53 57 57 65 28 15 Average Rating 37 | 5 9 10 11 17 29 44 48 47 50 11 11 On Entrance 19 | . 9 9 11 12 6 41 28 57 48 1 15 Naked Turns 98 | . . . . . . . . . 71 24 3 Heaviest Build 67 | 12 12 47 47 21 19 33 51 52 67 2 2 Greatest Support 81 | 20 20 40 40 65 38 56 51 51 81 3 4 Greatest Overweight (x) 9 | 3 . 1 1 1 1 9 . 2 3 . . Average Overweight (x) . | . . . . . . . . . . . . Largest Inventory Capacity 20 | 8 8 20 20 10 5 5 5 5 5 5 5 Average Capacity 5 | 7 8 8 12 9 5 5 5 5 5 5 5 Most Carried 10 | 5 7 8 9 10 5 5 5 5 5 5 5 Average Carried 4 | 2 4 6 7 8 3 3 2 4 4 3 4 Final Capacity 20 | 8 8 20 8 5 5 5 5 5 5 5 5 Final Carried 8 | 3 7 8 8 4 5 3 4 5 4 4 4 Class Distribution -------------------- 85% | Mutant 7% | Scavenger-Mutant 6% | Infiltrator-Mutant Dominant Class ---------------- Mutant | -10/Materials Mutant | -9/Materials Mutant | -9/Mines Scavenger-Mutant | -8/Materials Mutant | -7/Factory Mutant | -6/Factory Mutant | -5/Factory Mutant | -5/Upper Caves Mutant | -5/Upper Caves Mutant | -5/Zhirov Mutant | -4/Proximity Caves Resources | -11 -10 -9 -9 -8 -7 -6 -5 -5 -5 -5 -4 ----------- Run | Yrd Mat Mat Min Mat Fac Fac Fac Upp Upp Zhi Pro Matter Collected 2641 | 294 . 50 94 445 291 255 50 627 535 . . Remotely . | . . . . . . . . . . . . Salvage Created 2754 | 89 . 50 94 620 353 837 33 304 374 . . Parts 117 | 5 . 2 5 44 13 28 . 8 12 . . Haulers Intercepted . | . . . . . . . . . . . . Recyclers Shooed 1 | 1 . . . . . . . . . . . Parts Field Recycled . | . . . . . . . . . . . . Retrieved Matter . | . . . . . . . . . . . . Parts Self-Destructed 18 | . . . . . . . . 4 9 . 5 Prevented 3 | . . . . . . . . 2 1 . . Kills | -11 -10 -9 -9 -8 -7 -6 -5 -5 -5 -5 -4 ------- Run | Yrd Mat Mat Min Mat Fac Fac Fac Upp Upp Zhi Pro Combat Hostiles Destroyed 68 | . . 1 2 18 8 13 2 10 14 . . Guns 22 | . . 1 2 12 3 4 . . . . . Cannons 18 | . . . . . . 1 2 5 10 . . AOE 26 | . . . . 6 4 7 . 5 4 . . Classes Destroyed 12 | 2 . 1 1 4 . 4 . . . . . Worker 3 | . . . . 3 . . . . . . . Tunneler 1 | 1 . . . . . . . . . . . Recycler 5 | 1 . . . . 2 2 . . . . . Mechanic 1 | . . . . . . 1 . . . . . Watcher 2 | . . . . 1 1 . . . . . . Swarmer 12 | . . . . 3 4 . . . 5 . . Grunt 32 | . . . 2 10 2 3 2 7 6 . . Brawler 4 | . . . . . . 1 . 1 2 . . Duelist 1 | . . . . . . 1 . . . . . Sentry 8 | . . 1 . 3 . 2 . 1 1 . . Hunter 7 | . . . . 2 2 3 . . . . . Programmer 4 | . . . . . . 3 . 1 . . . Best Kill Streak 8 | 2 . 1 1 8 4 7 1 4 5 . . Combat Bots Only 5 | . . 1 1 5 4 4 1 4 5 . . Max Kills in Single Turn 3 | 1 . 1 1 3 3 3 1 1 3 . . Gunslinging . | . . . . . . . . . . . . Exploded 3 | . . . . 2 3 3 . 1 3 . . Melee . | . . . . . . . . . . . . Uniques/NPCs Destroyed . | . . . . . . . . . . . . Combat | -11 -10 -9 -9 -8 -7 -6 -5 -5 -5 -5 -4 -------- Run | Yrd Mat Mat Min Mat Fac Fac Fac Upp Upp Zhi Pro Hostile Shots Fired 668 | . . 20 29 155 30 188 21 54 103 . 68 Missed 211 | . . 5 7 44 6 61 8 14 40 . 26 Damage Taken 8457 | . . 218 271 2045 383 2186 244 949 1352 . 809 Core 2018 | . . 32 72 363 80 508 . 97 189 . 677 Absorbed by Shields . | . . . . . . . . . . . . Redirected to Shielding 252 | . . . . . 21 21 11 97 102 . . Regen/Repaired (Parts) 105 | . . . . 105 . . . . . . . Core Remaining (%) 72 | 100 100 . 74 34 88 40 . . . . . Volleys Fired 216 | 6 1 4 13 64 19 35 14 28 32 . . Largest 2 | 2 1 2 2 2 2 2 1 2 2 . . Hottest 160 | 40 100 40 40 126 160 160 57 105 122 . . Shots Fired 374 | 12 1 8 26 120 38 58 14 42 55 . . Gun 227 | 12 . 8 26 96 36 49 . . . . . Cannon 106 | . . . . . . 4 14 35 53 . . Launcher 31 | . . . . 15 2 5 . 7 2 . . Special 10 | . 1 . . 9 . . . . . . . Kinetic 186 | 12 . 8 26 34 . 4 14 35 53 . . Thermal 157 | . 1 . . 71 36 49 . . . . . Explosive 31 | . . . . 15 2 5 . 7 2 . . Electromagnetic . | . . . . . . . . . . . . Robot Hit Streak 15 | 3 . 5 9 15 14 12 4 9 9 . . Robot Miss Streak 7 | 3 . 2 2 3 3 7 3 2 3 . . Penetration Max . | . . . . . . . . . . . . Secondary Targets 2 | . . 1 1 . . . . . . . . Max Gunslinging Chain 1 | . . 1 1 . . . . . . . . Shots Hit Robots 264 | 6 . 6 22 73 32 46 8 31 40 . . Core Hits 169 | 4 . 2 5 53 22 39 3 22 19 . . Critical Kills . | . . . . . . . . . . . . Critical Parts Destroyed . | . . . . . . . . . . . . Critical Strikes 12 | . . . . 1 . . 2 3 6 . . Burn 1 | . . . . 1 . . . . . . . Blast 11 | . . . . . . . 2 3 6 . . Melee Attacks . | . . . . . . . . . . . . Impact . | . . . . . . . . . . . . Slashing . | . . . . . . . . . . . . Piercing . | . . . . . . . . . . . . Sneak Attacks . | . . . . . . . . . . . . Combat Hostiles . | . . . . . . . . . . . . Follow-up Attacks . | . . . . . . . . . . . . Damage Inflicted 8470 | 54 . 57 216 1669 883 1816 266 1570 1939 . . Guns 2824 | 54 . 57 216 895 656 946 . . . . . Cannons 2588 | . . . . . . 33 266 821 1468 . . Explosions 3054 | . . . . 774 223 837 . 749 471 . . Melee . | . . . . . . . . . . . . Ramming 4 | . . . . . 4 . . . . . . Kinetic 3125 | 54 . 57 216 197 . 46 266 821 1468 . . Thermal 2734 | . . . . 698 656 1380 . . . . . Explosive 2607 | . . . . 774 223 390 . 749 471 . . Electromagnetic . | . . . . . . . . . . . . Impact . | . . . . . . . . . . . . Slashing . | . . . . . . . . . . . . Piercing . | . . . . . . . . . . . . Highest Corruption 3 | . . . . 2 . 2 . . 3 3 3 Average Corruption 2 | . . . . 2 . 1 . . 2 3 3 Corruption Purged 2 | . . . . . . 2 . . . . . Corruption Blocked . | . . . . . . . . . . . . Effects 32 | . . . . 10 . 9 . . 6 4 3 Message Errors 8 | . . . . 2 . 2 . . 1 2 1 Matter Fused 7 | . . . . 2 . 4 . . 1 . . Heat Flow Errors 4 | . . . . . . . . . 2 . 2 Energy Discharges 3 | . . . . . . 1 . . 1 1 . Data Loss (minor) 8 | . . . . 5 . 1 . . 1 1 . Data Loss (major) 1 | . . . . . . 1 . . . . . Misfires 1 | . . . . 1 . . . . . . . Overload Shots . | . . . . . . . . . . . . Overflow Damage 172 | . . . . . . 143 . 3 26 . . Projectiles 26 | . . . . . . . . . 26 . . Explosions 146 | . . . . . . 143 . 3 . . . Melee . | . . . . . . . . . . . . Knockbacks 18 | . . . . . . . 3 5 10 . . Impact . | . . . . . . . . . . . . Kinetic 17 | . . . . . . . 3 5 9 . . Secondary 1 | . . . . . . . . . 1 . . Self-Inflicted Damage 547 | . . . . 40 . 457 . 50 . . . Shots 10 | . . . . 1 . 7 . 2 . . . Rammed . | . . . . . . . . . . . . Targets Rammed 2 | . . . . . 2 . . . . . . Kicked 2 | . . . . . 2 . . . . . . Crushed . | . . . . . . . . . . . . Highest Temperature 387 | . 20 6 12 387 314 332 75 184 311 . 235 Average Temperature 101 | . 10 5 6 122 71 99 36 91 128 . 114 Received Heat Transfer 2275 | . . 81 153 729 63 508 117 243 354 . 27 Effects 7 | . . . . 7 . . . . . . . Energy Bleed 1 | . . . . 1 . . . . . . . Interference 4 | . . . . 4 . . . . . . . Damage (minor) 2 | . . . . 2 . . . . . . . Siege Activations . | . . . . . . . . . . . . Robots Corrupted . | . . . . . . . . . . . . Combat Hostiles . | . . . . . . . . . . . . Parts Fried . | . . . . . . . . . . . . Impact Corruptions . | . . . . . . . . . . . . Robots Melted 2 | . . . . . 1 1 . . . . . Combat Hostiles 2 | . . . . . 1 1 . . . . . Parts Melted 12 | . . . . . 7 5 . . . . . Heat Transferred 5216 | . . . . 1591 1475 2150 . . . . . Parts Sabotaged 3 | . . . . . . 3 . . . . . Parts Stolen . | . . . . . . . . . . . . Parts Stripped . | . . . . . . . . . . . . Power Chain Reactions . | . . . . . . . . . . . . Alert | -11 -10 -9 -9 -8 -7 -6 -5 -5 -5 -5 -4 ------- Run | Yrd Mat Mat Min Mat Fac Fac Fac Upp Upp Zhi Pro Peak Influence 456 | 10 37 90 84 383 173 456 275 . . . . Initial 213 | . 6 15 34 32 64 71 213 . . . . Average 142 | 2 16 29 75 172 89 194 197 . . . . Maximum Alert Level 2 | . . . . 1 . 2 1 . . . . Low Security (%) 72 | 100 100 100 100 49 100 70 26 . . . . Level 1 26 | . . . . 50 . 23 73 . . . . Level 2 1 | . . . . . . 6 . . . . . Level 3 . | . . . . . . . . . . . . Level 4 . | . . . . . . . . . . . . Level 5 . | . . . . . . . . . . . . High Security . | . . . . . . . . . . . . Max Security . | . . . . . . . . . . . . Squads Dispatched 13 | . 1 . . 2 2 6 1 . 1 . . Investigation 3 | . . . . 1 1 . 1 . . . . Extermination 3 | . . . . . 1 2 . . . . . Reinforcement 4 | . 1 . . 1 . 2 . . . . . Assault 2 | . . . . . . 1 . . 1 . . Garrison 1 | . . . . . . 1 . . . . . Intercept . | . . . . . . . . . . . . Searches Triggered . | . . . . . . . . . . . . Construction Impeded . | . . . . . . . . . . . . Haulers Reinforced . | . . . . . . . . . . . . Active Scanning Responses . | . . . . . . . . . . . . Cargo Convoy Interrupts . | . . . . . . . . . . . . Stealth | -11 -10 -9 -9 -8 -7 -6 -5 -5 -5 -5 -4 --------- Run | Yrd Mat Mat Min Mat Fac Fac Fac Upp Upp Zhi Pro Distress Signals 5 | . . 1 . 4 . . . . . . . Communications Jammed 2 | . . . . . . 2 . . . . . Distress Signals 2 | . . . . . . 2 . . . . . Times Spotted 131 | . 1 3 2 33 19 24 7 11 22 . 9 Peak Tracking Total 8 | . 1 4 2 8 4 5 4 4 6 . 8 Tactical Retreats 16 | . . 1 . 4 2 4 3 1 1 . . Traps | -11 -10 -9 -9 -8 -7 -6 -5 -5 -5 -5 -4 ------- Run | Yrd Mat Mat Min Mat Fac Fac Fac Upp Upp Zhi Pro Traps Triggered 2 | . . . . 1 . . 1 . . . . Indirectly . | . . . . . . . . . . . . Trap Hack Attempts . | . . . . . . . . . . . . Triggered . | . . . . . . . . . . . . Disarmed . | . . . . . . . . . . . . Reprogrammed . | . . . . . . . . . . . . Reused . | . . . . . . . . . . . . Traps Extracted . | . . . . . . . . . . . . Installed . | . . . . . . . . . . . . Triggered . | . . . . . . . . . . . . Machines | -11 -10 -9 -9 -8 -7 -6 -5 -5 -5 -5 -4 ---------- Run | Yrd Mat Mat Min Mat Fac Fac Fac Upp Upp Zhi Pro Machines Disabled 13 | . . . . 4 . 9 . . . . . Max in Single Turn 4 | . . . . 1 . 4 . . . . . Garrison Access 2 | . . . . . 1 1 . . . . . Machines Repaired . | . . . . . . . . . . . . Machines Dismantled . | . . . . . . . . . . . . Machines Sabotaged . | . . . . . . . . . . . . Overloaded Fab Kills . | . . . . . . . . . . . . Hacking | -11 -10 -9 -9 -8 -7 -6 -5 -5 -5 -5 -4 --------- Run | Yrd Mat Mat Min Mat Fac Fac Fac Upp Upp Zhi Pro Machines Accessed 25 | . 4 . . 6 5 3 4 3 . . . Terminals 15 | . 3 . . 5 2 2 3 . . . . Fabricators 3 | . . . . . 2 1 . . . . . Repair Stations 1 | . . . . 1 . . . . . . . Recycling Units 2 | . 1 . . . . . 1 . . . . Scanalyzers . | . . . . . . . . . . . . Garrison Access 1 | . . . . . 1 . . . . . . Total Hacks 57 | . 10 . . 18 7 6 9 7 . . . Successful 33 | . 7 . . 9 3 3 4 7 . . . Failed 24 | . 3 . . 9 4 3 5 . . . . Catastrophic 7 | . . . . 3 1 . 3 . . . . Database Lockouts . | . . . . . . . . . . . . Manual 9 | . 1 . . 5 . . 3 . . . . Terminals 35 | . 6 . . 13 3 5 8 . . . . Fabricators 3 | . . . . . 2 1 . . . . . Repair Stations 5 | . . . . 5 . . . . . . . Recycling Units 5 | . 4 . . . . . 1 . . . . Scanalyzers . | . . . . . . . . . . . . Garrison Access 2 | . . . . . 2 . . . . . . Terminal Hacks 21 | . 4 . . 5 . 2 3 7 . . . Record 7 | . . . . . . . 2 5 . . . Open Door 2 | . . . . . . . . 2 . . . Open DSF 1 | . . . . . . 1 . . . . . Level Access Points 1 | . 1 . . . . . . . . . . Emergency Access Points 1 | . . . . . . 1 . . . . . Alert Level 3 | . 1 . . 1 . . 1 . . . . Locate Traps 2 | . . . . 2 . . . . . . . Patrol Status 1 | . 1 . . . . . . . . . . Transport Status 1 | . . . . 1 . . . . . . . Zone Layout 2 | . 1 . . 1 . . . . . . . Fabricator Hacks 2 | . . . . . 1 1 . . . . . Build 2 | . . . . . 1 1 . . . . . Repair Station Hacks 4 | . . . . 4 . . . . . . . Scan Component 2 | . . . . 2 . . . . . . . Repair 2 | . . . . 2 . . . . . . . Recycling Unit Hacks 4 | . 3 . . . . . 1 . . . . Process 1 | . 1 . . . . . . . . . . Report Inventory 2 | . 1 . . . . . 1 . . . . Retrieve Matter 1 | . 1 . . . . . . . . . . Scanalyzer . | . . . . . . . . . . . . Garrison Access Hacks 2 | . . . . . 2 . . . . . . Seal Access 1 | . . . . . 1 . . . . . . Coupler Status 1 | . . . . . 1 . . . . . . Unauthorized Hacks . | . . . . . . . . . . . . Terminals . | . . . . . . . . . . . . Fabricators . | . . . . . . . . . . . . Repair Stations . | . . . . . . . . . . . . Recycling Units . | . . . . . . . . . . . . Scanalyzers . | . . . . . . . . . . . . Garrison Access . | . . . . . . . . . . . . Data Cores Recovered . | . . . . . . . . . . . . Used . | . . . . . . . . . . . . Hacking Detections 16 | . 2 . . 5 4 2 3 . . . . Full Trace Events 4 | . . . . 2 1 . 1 . . . . Feedback Events . | . . . . . . . . . . . . Feedback Blocked . | . . . . . . . . . . . . Robot Schematics Acquired . | . . . . . . . . . . . . Robots Built . | . . . . . . . . . . . . Authchips . | . . . . . . . . . . . . Time 134 | . . . . . 134 . . . . . . Total Robot Build Rating . | . . . . . . . . . . . . Part Schematics Acquired . | . . . . . . . . . . . . Parts Built 2 | . . . . . . 2 . . . . . Authchips . | . . . . . . . . . . . . Time 58 | . . . . . . 58 . . . . . Total Part Build Rating 14 | . . . . . . 14 . . . . . Parts Repaired 2 | . . . . 2 . . . . . . . Time 64 | . . . . 64 . . . . . . . Parts Recycled . | . . . . . . . . . . . . Recycled Matter 4 | . 4 . . . . . . . . . . Retrieved Matter 4 | . 4 . . . . . . . . . . Retrieved Components . | . . . . . . . . . . . . Parts Scanalyzed . | . . . . . . . . . . . . Part Schematics Acquired . | . . . . . . . . . . . . Parts Damaged . | . . . . . . . . . . . . Bothacking | -11 -10 -9 -9 -8 -7 -6 -5 -5 -5 -5 -4 ------------ Run | Yrd Mat Mat Min Mat Fac Fac Fac Upp Upp Zhi Pro Used RIF Installer . | . . . . . . . . . . . . Robots Hacked . | . . . . . . . . . . . . Non-combat . | . . . . . . . . . . . . Combat . | . . . . . . . . . . . . Robot Hacks Applied . | . . . . . . . . . . . . Relay Couplers Released 2 | . . . . . . 2 . . . . . Machine Destruction 2 | . . . . . . 2 . . . . . Fabnet Peak Effective % . | . . . . . . . . . . . . Robots Rewired . | . . . . . . . . . . . . Allies Hacked . | . . . . . . . . . . . . Hacks Repelled . | . . . . . . . . . . . . Allies | -11 -10 -9 -9 -8 -7 -6 -5 -5 -5 -5 -4 -------- Run | Yrd Mat Mat Min Mat Fac Fac Fac Upp Upp Zhi Pro Total Allies 2 | . . . . . . . . 2 . . . Largest Group 2 | . . . . . . . . 2 . . . Highest-Rated Group 62 | . . . . . . . . 62 . . . Highest-Rated Ally 31 | . . . . . . . . 31 . . . Total Orders . | . . . . . . . . . . . . Ally Attacks 10 | . . . . . . . . 10 . . . Total Damage 128 | . . . . . . . . 128 . . . Kills . | . . . . . . . . . . . . Allies Corrupted 1 | . . . . . . . . 1 . . . Allies Melted . | . . . . . . . . . . . . Intel | -11 -10 -9 -9 -8 -7 -6 -5 -5 -5 -5 -4 ------- Run | Yrd Mat Mat Min Mat Fac Fac Fac Upp Upp Zhi Pro Robot Analysis Total . | . . . . . . . . . . . . Derelict Logs Recovered 3 | . . . . . . . . 1 1 . 1 Drone Launches . | . . . . . . . . . . . . Drone Recoveries . | . . . . . . . . . . . . Exploration | -11 -10 -9 -9 -8 -7 -6 -5 -5 -5 -5 -4 ------------- Run | Yrd Mat Mat Min Mat Fac Fac Fac Upp Upp Zhi Pro Turns Passed 7124 | 98 132 131 150 808 1135 1152 545 1691 1032 98 152 Spaces Moved 4280 | 56 103 66 76 432 860 444 297 804 673 166 303 Core 561 | 18 . . . . . 6 . . 123 166 248 Treads 1208 | . . 66 6 . 21 298 . 418 399 . . Legs 1817 | 38 103 . 70 352 281 139 297 386 151 . . Wheels 413 | . . . . . 413 . . . . . . Hover 146 | . . . . . 145 1 . . . . . Flight 135 | . . . . 80 . . . . . . 55 Fastest Speed 35 | 50 120 160 120 36 48 120 120 120 50 50 35 Average Speed 131 | 116 120 163 130 105 102 186 120 197 133 50 47 Slowest Speed 500 | 200 120 240 240 190 190 500 120 260 330 50 50 Overloaded Moves . | . . . . . . . . . . . . Propulsion Burnouts . | . . . . . . . . . . . . Robots Hopped 1 | . . . . . . . . . . . 1 Cave-ins Triggered . | . . . . . . . . . . . . Teleports 1 | . . . . . . . . . . 1 . Exploration Rate (%) 35 | 5 25 13 21 36 31 15 7 87 85 57 43 Regions Visited 11 Branch Regions 5 Pre-discovered Areas 1 | . . . . . . . . 1 . . . Known Exits Taken 1 | . 1 . . . . . . . . . . Unknown Exits Taken 10 | 1 . 1 1 1 1 1 1 1 1 1 . Scrap Searched 3 | . . . . . . . . 2 1 . . Spaces Dug 9 | . 1 . . 8 . . . . . . . Terrain Destroyed 337 | . 1 . . 58 13 161 9 58 37 . . Melee . | . . . . . . . . . . . . Projectile 45 | . 1 . . 8 . 2 9 10 15 . . AOE 292 | . . . . 50 13 159 . 48 22 . . Terrain Rammed . | . . . . . . . . . . . . Walls Destroyed . | . . . . . . . . . . . . Machines Disabled . | . . . . . . . . . . . . Actions | -11 -10 -9 -9 -8 -7 -6 -5 -5 -5 -5 -4 --------- Run | Yrd Mat Mat Min Mat Fac Fac Fac Upp Upp Zhi Pro Total 5393 | 78 108 82 106 654 1067 710 473 873 751 181 310 Wait 556 | . . 4 . 86 128 175 140 6 13 . 4 Move 4267 | 55 102 65 75 431 859 443 296 803 672 165 301 Hop 1 | . . . . . . . . . . . 1 Pick Up 137 | 10 4 4 7 29 22 22 10 15 7 5 2 Fast Attach . | . . . . . . . . . . . . Attach 115 | 7 . 2 2 25 15 22 8 8 16 8 2 Detach 19 | . . . . 2 2 1 1 2 8 3 . Swap 35 | . 1 2 2 9 10 5 1 2 3 . . Drop 45 | . . 1 7 8 10 7 3 9 . . . Fire 216 | 6 1 4 13 64 19 35 14 28 32 . . Melee . | . . . . . . . . . . . . Ram . | . . . . . . . . . . . . Kick 2 | . . . . . 2 . . . . . . Crush . | . . . . . . . . . . . . Escape Stasis . | . . . . . . . . . . . . Rewire . | . . . . . . . . . . . . Trap . | . . . . . . . . . . . . Miscellaneous . | . . . . . . . . . . . . Route ------- -11/Scrapyard -10/Materials (discovered 3 exits: *Mat x3) -9/Materials -9/Mines (discovered 2 exits: *Mat / [*Zio]) -8/Materials -7/Factory -6/Factory -5/Factory -5/Upper Caves -5/Upper Caves -5/Zhirov -4/Proximity Caves History --------- Turn | Location | Event 10 | -11/Scrapyard | Discovered new exit (range 15) 99 | -11/Scrapyard | Entered Materials 180 | -10/Materials | Discovered new exit (range 14) 217 | -10/Materials | Identified exit to Materials 231 | -10/Materials | Entered another Materials area 231 | -9/Materials | Evolved 2 slots: Propulsion x2 327 | -9/Materials | Build established: Mutant 332 | -9/Materials | Discovered new exit (range 5) 362 | -9/Materials | Entered Mines 505 | -9/Mines | Discovered new exit (range 6) 506 | -9/Mines | A Derelict revealed a hidden shortcut to a safe place 512 | -9/Mines | Entered Materials 512 | -8/Materials | Evolved 2 slots: Propulsion x2 794 | -8/Materials | Lost 6 parts (1p4n1w) 880 | -8/Materials | Repaired Aluminum Leg 920 | -8/Materials | Repaired Lgt. Nuclear Core 992 | -8/Materials | Lost 3 parts (1p2n) 1149 | -8/Materials | Lost 4 parts (3n1w) 1176 | -8/Materials | Build established: Scavenger-Mutant 1299 | -8/Materials | Core integrity fell below 50% 1314 | -8/Materials | Discovered new exit (range 6) 1320 | -8/Materials | Entered Factory 1320 | -7/Factory | Evolved 2 slots: Utility x2 1342 | -7/Factory | Lost 10 parts (1p4n3u2w) 1581 | -7/Factory | Build established: Mutant 2385 | -7/Factory | Discovered new exit (range 16) 2455 | -7/Factory | Entered another Factory area 2455 | -6/Factory | Evolved 2 slots: Power x1, Utility x1 2571 | -6/Factory | Identified exit to DSF 2777 | -6/Factory | Lost 3 parts (1p1n1u) 2919 | -6/Factory | Fabricated Antimatter Reactor? 2958 | -6/Factory | Lost 3 parts (3n) 3055 | -6/Factory | Build established: Infiltrator-Mutant 3267 | -6/Factory | Garrison activated, responded to threat 3304 | -6/Factory | Lost 5 parts (1n2u2w) 3534 | -6/Factory | Build established: Mutant 3538 | -6/Factory | Core integrity fell below 50% 3579 | -6/Factory | Lost 4 parts (2n2w) 3595 | -6/Factory | Discovered new exit (range 8) 3607 | -6/Factory | Entered another Factory area 3607 | -5/Factory | Evolved 2 slots: Propulsion x2 3764 | -5/Factory | Found Prototype Launcher 3765 | -5/Factory | Identified Mni. Smartbomb Launcher 3865 | -5/Factory | Discovered new exit (range 5) 4152 | -5/Factory | Entered Upper Caves 4245 | -5/Upper Caves | A Commander dispatched an escort 4268 | -5/Upper Caves | Learned Research trap positions 4268 | -5/Upper Caves | Learned Factory emergency access door positions 4268 | -5/Upper Caves | Learned Factory stockpile data 4268 | -5/Upper Caves | Learned Research terminal intel 4544 | -5/Upper Caves | Attracted the attention of an 0b10 checkpoint 4606 | -5/Upper Caves | Lost 3 parts (2n1u) 4786 | -5/Upper Caves | Encountered a Warlord checkpoint 5619 | -5/Upper Caves | Discovered new exit (range 15) 5843 | -5/Upper Caves | Entered another Upper Caves area 6288 | -5/Upper Caves | Learned location of 1 exit from Factory 6657 | -5/Upper Caves | Lost 6 parts (4n2u) 6697 | -5/Upper Caves | Attracted the attention of an 0b10 outpost 6796 | -5/Upper Caves | Lost 5 parts (1p2n1u1w) 6804 | -5/Upper Caves | Released all parts (8) 6874 | -5/Upper Caves | Discovered new exit (range 2) 6875 | -5/Upper Caves | Entered Zhirov 6875 | -5/Zhirov | Discovered new exit (range 3) 6897 | -5/Zhirov | Found Alien Artifact 6898 | -5/Zhirov | Identified Integrated Reactor 6898 | -5/Zhirov | Installed Integrated Reactor, increased core energy generation (+10) 6908 | -5/Zhirov | Found Alien Artifact 6909 | -5/Zhirov | Identified Transdimensional Reconstructor 6909 | -5/Zhirov | Warped through subspace 6973 | -5/Zhirov | Entered Proximity Caves 6989 | -4/Proximity Caves | Learned Research security intel 7087 | -4/Proximity Caves | Spotted B-86 Titan 7088 | -4/Proximity Caves | Core integrity fell below 50% 7099 | -4/Proximity Caves | Core integrity fell below 20% 7125 | -4/Proximity Caves | Destroyed by H-77 Assassin with Coil Gun Last Messages --------------- Data stored: Research security intel. 06995_ System corrupted: Heat flow error (+244). 07054_ Penetrated by Slug. 07057_ Adv. Heat Sink destroyed. 07058_ Slug penetrates Wall. 07065_ /IHJKEWWAQ Z |CN|H RV KRKT>G> 07087_ Knocked back. 07091_ Cryofiber Web destroyed. 07093_ System corrupted: Heat flow error (+275). 07095_ Penetrated by Slug. 07099_ Slug penetrates S-27 Virus. 07099_ S-27 Virus destroyed. 07100_ Acquired VTOL Module. 07102_ Penetrated by Slug. 07102_ VTOL Module destroyed. 07102_ Imp. Hacking Suite destroyed. 07103_ Acquired VTOL Module. 07106_ VTOL Module fries itself beyond repair. 07124_ VTOL Module destroyed. 07125_ Penetrated by Slug. Map ----- +----------------------------------------------------+ | ?????????????????????????????????????????????????? | | ?????????????????????????????????????????????????? | | ?????????????????????????????????????????????????? | | ?????????????????????????????????????????????????? | | ?????????????????????????????????????????????????? | | ?????????????????????????????????????????????????? | | ?????????????????????????????????????????????????? | | ?????????????????????????????????????????????????? | | ?????????????????????????????????????????????????? | | ????????????????????????????????? ???????????????? | | ???????????????????????????????? ?????????????? | | ?????????????????????????????### ???????????? | | ????????????????????????????? ???????????? | | ??????????###??????????????? h ??????????? | | ?????????## ??????????????? ??????????? | | ????????## ??????????????? ?????????? | | ???????## ??????????????? ??????????? | | ??????## ??????????????# ????????????? | | ??????? ?????????????? ??????????????? | | ???????? #?????????????? #???????????????? | | ?????????# ##???????????## #????????????????? | | ??????????# ##??????????# #??????????????????? | | ??????????# ##???####?## #??????????????????? | | ??????????# ##??# ### #??????????????????? | | ???????#### #?## ##??????????????????? | | ????#### ### @ ###???????????????????? | | ????# ##?????????????????????? | | ????# s ##??????????????????????? | | ????# ### #???????????????????????? | | ???## ######## s #???????????????????????? | | ?### #??### ## #???????????????????????? | | ##???######s ##??????????????????????? | | ### ##???????# #??????????????????????? | | ??## #???????# #??????????????????????? | | ???# #???????# #??????????????????????? | | #???# ##???????# #??????????????????????? | | ######???## ##??????# ##??????????????????????? | | ??????#### ##?????#####???????????????????????? | | ?????## #?????????????????????????????????? | | ?????# #?????????????????????????????????? | | ?????## [ ##?????????????????????????????????? | | ??????#*% ##??????????????????????????????????? | | ????### #???????????????????????????????????? | | ????# =%[ ##???????????????????????????????????? | | ????# ####????????????????????????????????????? | | ????# ##???????????????????????????????????????? | | #### #????????????????????????????????????????? | | # #?????????????????????????????????????????? | | % #?????????????????????????????????????????? | | #?????????????????????????????????????????? | +----------------------------------------------------+ Best States ------------- Heat Dissipation 78 Energy Generation 37 Energy Capacity 550 Matter Stores 450 Matter Capacity 450 Sight Range 16 Robot Scan Range 16 Terrain Scan Range 20 Terrain Scan Density 10 ECM Strength 2 Jamming Range 12 Base Temperature (-) 100 EM Shielding 3 Armor Coverage 225 Propulsion Shielding 66 Weapon Shielding 33 Weapon Cycling 15 Evasion (%) 63 Recoil Reduction 3 Offensive Hacking 12 Item Schematics ----------------- None Robot Schematics ------------------ None Fabricated ------------ Antimatter Reactor | x2 | -6/Factory | Preloaded Alien Tech Used ----------------- Integrated Reactor Transdimensional Reconstructor Achievements -------------- None Challenges ------------ None Game ------ Seed ActuatorPersonalMeganuke Manual? 0 Play Time 01:14:05 Cumulative 28.1 hours Start 2024.10.22 @ 12:48:02 End 2024.10.22 @ 13:59:23 Sessions 1 Manual Loads 0 Difficulty Rogue Special Mode None Game No. 41 Rogue 41 Adventurer 0 Explorer 0 Win Type - Total 0 Types 0/0/0/0/0/0/0/0/0 Lore% 19 Gallery% 30 Achievement% 27 Wizard Run 0 Options --------- Layout 1 ASCII 1 Keyboard 0 Movement Numpad Keybinds 0 Fullscreen 1 Font 48/Smallcaps Map View 76x35 Zoom Use 0% Tactical HUD 1 Map Filters NONE Filters NONE Steam 1 RUN: 51e65139-c680-478e-ad46-39d739773921